bitfinex/quotes_SOLUSD_20241005
["timestamp","ask_amount","ask_price","bid_price","bid_amount"]
[1728148630801,23.776884,142.55,142.5,50.0]
[1728148630996,7.0164,142.53,142.5,50.0]
[1728148632429,7.0164,142.53,142.51,50.0]
[1728148633617,7.0172,142.51,142.48,50.0]
[1728148633824,1.7075049,142.54,142.48,50.0]
[1728148633825,23.776884,142.53,142.48,50.0]
[1728148634136,7.018,142.5,142.48,50.0]
[1728148634629,7.018,142.5,142.47,50.0]
[1728148635828,7.018,142.5,142.49,50.0]
[1728148636009,7.0171,142.51,142.49,50.0]
[1728148640237,7.0171,142.51,142.48,50.0]
[1728148641343,7.0171,142.51,142.49,50.0]
[1728148646939,7.0177,142.5,142.47,50.0]
[1728148647115,25.4843889,142.53,142.46,0.12549]
[1728148647116,7.0181,142.49,142.46,0.12549]
[1728148647624,7.0181,142.49,142.46,50.0]
[1728148648728,7.0181,142.49,142.47,50.0]
[1728148649834,1.7075049,142.54,142.49,50.0]
[1728148650041,7.0162,142.53,142.49,50.0]
[1728148650274,1.7075049,142.54,142.49,50.0]
[1728148650545,7.0167,142.52,142.49,50.0]
[1728148650748,7.0167,142.52,142.48,50.0]
[1728148651845,7.0167,142.52,142.48,50.12549]
[1728148652348,7.0174,142.51,142.48,50.0]
[1728148656648,7.0175,142.5,142.46,67.5481]
[1728148657341,7.018,142.49,142.46,67.5481]
[1728148658469,23.776884,142.53,142.48,50.0]
[1728148658681,7.017,142.51,142.48,50.0]
[1728148665775,7.017,142.51,142.47,57.14429]
[1728148666070,7.017,142.51,142.46,17.5481]
[1728148666071,7.0179,142.5,142.45,50.0]
[1728148666256,7.0181,142.49,142.45,50.0]
[1728148666671,7.0175,142.5,142.47,50.0]
[1728148666840,7.0175,142.5,142.48,50.0]
[1728148667268,23.776884,142.53,142.48,50.0]
[1728148667458,7.0171,142.51,142.48,50.0]
[1728148669067,7.0167,142.52,142.49,50.0]
[1728148670294,28.8725049,142.58,142.5,1.40328718]
[1728148670449,7.0164,142.53,142.49,50.0]
[1728148671385,7.0165,142.52,142.49,50.0]
[1728148671553,7.017,142.51,142.48,0.12549]
[1728148671871,7.0176,142.5,142.47,50.0]
[1728148672185,7.0171,142.51,142.47,50.0]
[1728148673366,7.0176,142.5,142.47,50.0]
[1728148674368,7.0176,142.5,142.46,50.0]
[1728148674565,33.407384,142.53,142.46,50.0]
[1728148674775,7.0181,142.49,142.46,50.0]
[1728148676558,7.0181,142.49,142.45,57.14539]
[1728148676988,7.0187,142.48,142.45,50.0]
[1728148677159,7.0187,142.48,142.44,17.5505]
[1728148677659,7.0187,142.48,142.44,67.5505]
[1728148680588,8.2588049,142.51,142.46,50.0]
[1728148680791,7.018,142.49,142.44,80.83138046]
[1728148680966,7.018,142.49,142.45,0.12549]
[1728148681563,7.018,142.49,142.46,50.0]
[1728148682792,7.018,142.49,142.45,50.12549]
[1728148683892,7.018,142.49,142.46,50.0]
[1728148684390,7.0171,142.51,142.47,7.0189]
[1728148684966,7.0171,142.51,142.47,57.0189]
[1728148686580,30.793484,142.52,142.47,57.0189]
[1728148687172,30.793484,142.52,142.48,50.0]
[1728148687392,23.776884,142.53,142.48,50.0]
[1728148687575,7.017,142.51,142.48,50.0]
[1728148692274,7.0167,142.52,142.48,50.0]
[1728148695896,25.4843889,142.53,142.48,50.0]
[1728148696104,7.017,142.51,142.48,50.0]
[1728148697507,25.4843889,142.53,142.48,50.0]
[1728148697711,7.0166,142.52,142.48,57.0184]
[1728148698777,7.0166,142.52,142.48,50.0]
[1728148698981,7.0166,142.52,142.48,57.0185]
[1728148699712,7.0166,142.52,142.49,50.0]
[1728148701023,25.4843889,142.53,142.47,57.14439]
[1728148701303,7.0172,142.51,142.47,50.12549]
[1728148701500,25.4843889,142.53,142.47,50.0]
[1728148701684,25.4843889,142.53,142.46,17.5482]
[1728148701877,7.0186,142.48,142.45,50.0]
[1728148702482,7.0181,142.49,142.45,50.0]
[1728148703910,7.0181,142.49,142.46,50.0]
[1728148707288,20.0,142.52,142.48,50.0]
[1728148707586,7.0171,142.51,142.49,1.40340276]
[1728148710018,7.0171,142.51,142.48,50.0]
[1728148710209,8.2588049,142.55,142.48,50.0]
[1728148710210,7.0165,142.52,142.48,57.0184]
[1728148710408,7.0165,142.52,142.49,50.0]
[1728148713193,8.2915049,142.58,142.51,50.0]
[1728148713399,7.0147,142.56,142.53,50.0]
[1728148713597,7.0141,142.57,142.54,1.40286624]
[1728148714011,6.584,142.58,142.54,1.40286624]
[1728148714212,7.0142,142.57,142.54,1.40286624]
[1728148714603,7.0146,142.56,142.52,7.0164]
[1728148714936,7.0155,142.54,142.52,50.0]
[1728148715234,1.7075049,142.57,142.5,23.23629]
[1728148715235,7.016,142.53,142.5,50.0]
[1728148715925,7.016,142.53,142.49,50.0]
[1728148716729,7.016,142.53,142.5,50.0]
[1728148717107,7.0156,142.54,142.5,50.0]
[1728148717312,7.0156,142.54,142.51,1.40319984]
[1728148717609,7.0151,142.55,142.51,1.40319984]
[1728148717833,7.0151,142.55,142.51,51.40319984]
[1728148718421,7.0151,142.55,142.51,57.017]
[1728148718924,7.0151,142.55,142.52,50.0]
[1728148719117,7.0151,142.55,142.5,50.12549]
[1728148719426,7.0156,142.54,142.5,50.0]
[1728148721311,7.0156,142.54,142.5,57.0174]
[1728148722209,7.0156,142.54,142.51,50.0]
[1728148723230,7.0156,142.54,142.5,57.0174]
[1728148723920,1.7075049,142.57,142.5,50.0]
[1728148724127,7.0166,142.52,142.48,67.67119]
[1728148726527,7.0166,142.52,142.49,50.0]
[1728148728626,7.0166,142.52,142.48,67.5457]
[1728148730733,7.0171,142.51,142.47,57.0188]
[1728148734831,6.2122,142.53,142.45,67.5493]
[1728148735126,7.0185,142.48,142.45,17.5493]
[1728148735429,23.776884,142.49,142.45,17.5493]
[1728148736010,23.776884,142.49,142.45,67.5493]
[1728148736412,30.795084,142.49,142.45,67.5493]
[1728148737026,30.795084,142.49,142.45,74.5691]
[1728148737235,7.0182,142.49,142.45,74.5691]
[1728148740318,7.0182,142.49,142.45,24.5691]
[1728148740512,7.0182,142.49,142.45,74.5691]
[1728148741446,14.9358049,142.53,142.48,57.0181]
[1728148741740,14.9358049,142.53,142.49,1.40339594]
[1728148742112,7.0166,142.52,142.48,57.0181]
[1728148742437,7.0172,142.51,142.47,24.5657]
[1728148742624,7.0172,142.51,142.47,74.5657]
[1728148743719,30.793484,142.52,142.48,51.40344388]
[1728148744813,8.7247049,142.51,142.47,17.5468]
[1728148745019,1.7075049,142.51,142.47,17.5468]
[1728148745221,1.7075049,142.51,142.46,57.14489]
[1728148745832,1.7075049,142.51,142.45,50.0]
[1728148746044,7.0185,142.48,142.44,24.5708]
[1728148746238,7.0181,142.49,142.44,24.5708]
[1728148746830,7.0181,142.49,142.44,74.5708]
[1728148747947,7.0181,142.49,142.45,50.0]
[1728148748759,7.0181,142.49,142.44,24.5708]
[1728148748965,7.0191,142.47,142.43,50.0]
[1728148749261,8.7260049,142.48,142.44,50.0]
[1728148749420,7.0185,142.48,142.44,50.0]
[1728148750351,7.02,142.45,142.41,67.5542]
[1728148750517,7.0205,142.44,142.41,50.0]
[1728148751121,7.0205,142.44,142.4,57.0223]
[1728148751655,8.7285049,142.43,142.38,74.5813]
[1728148751857,7.021,142.43,142.38,74.5813]
[1728148753143,7.0205,142.44,142.4,50.0]
[1728148753343,40.427384,142.46,142.4,57.0223]
[1728148753657,7.0201,142.45,142.4,57.0223]
[1728148753840,8.7276049,142.45,142.4,57.0223]
[1728148754553,7.0205,142.44,142.4,50.0]
[1728148755427,7.0205,142.44,142.39,57.0225]
[1728148755857,7.0213,142.43,142.39,50.0]
[1728148756252,7.0213,142.43,142.39,57.0229]
[1728148756656,30.797384,142.44,142.39,57.0229]
[1728148757651,30.797384,142.44,142.4,50.0]
[1728148757859,30.797384,142.44,142.4,57.0223]
[1728148759651,30.797384,142.44,142.4,7.0223]
[1728148760765,7.0191,142.47,142.43,50.0]
[1728148761852,7.0191,142.47,142.42,57.0214]
[1728148762842,8.7274049,142.46,142.41,67.5547]
[1728148763369,7.0199,142.46,142.42,7.0214]
[1728148764063,7.0199,142.46,142.42,57.0214]
[1728148764965,7.0199,142.46,142.42,7.0214]
[1728148765171,7.0199,142.46,142.42,57.0214]
[1728148767177,7.0199,142.46,142.44,50.0]
[1728148768170,7.0199,142.46,142.43,50.0]
[1728148776973,7.0199,142.46,142.44,50.0]
[1728148779490,7.0185,142.48,142.44,50.0]
[1728148779661,7.0181,142.49,142.46,50.0]
[1728148779857,1.7075049,142.5,142.46,50.0]
[1728148779858,7.0175,142.5,142.47,1.40371056]
[1728148780086,7.0175,142.5,142.47,51.40371056]
[1728148781459,7.0175,142.5,142.47,50.0]
[1728148785293,7.0175,142.5,142.45,7.0199]
[1728148785591,7.0175,142.5,142.47,50.0]
[1728148790197,7.0175,142.5,142.48,1.40356194]
[1728148790361,1.7075049,142.52,142.49,50.0]
[1728148790362,30.793884,142.51,142.49,50.0]
[1728148791493,7.017,142.52,142.49,50.0]
[1728148791870,7.017,142.52,142.5,50.0]
[1728148792289,7.0159,142.54,142.5,50.0]
[1728148792930,7.0159,142.54,142.51,51.4032293]
[1728148793269,7.0159,142.54,142.51,50.0]
[1728148796095,7.0159,142.54,142.52,50.0]
[1728148798395,36.63058884,142.58,142.54,50.0]
[1728148798396,22.07049374,142.58,142.54,50.0]
[1728148798705,7.0142,142.57,142.56,50.0]
[1728148799008,1.7075049,142.6,142.56,50.0]
[1728148799301,7.0135,142.59,142.56,50.0]
[1728148801229,7.75798565,142.65,142.56,50.0]
[1728148801230,28.8638049,142.65,142.58,50.0]
[1728148801512,7.0121,142.61,142.6,50.0]
[1728148801682,7.0121,142.61,142.58,50.0]
[1728148801884,28.8638049,142.65,142.58,50.0]
[1728148802307,7.0127,142.6,142.58,50.0]
[1728148802502,7.0127,142.6,142.57,50.0]
[1728148802907,45.4843889,142.64,142.57,50.0]
[1728148803195,7.0131,142.59,142.57,50.0]
[1728148804500,7.0131,142.59,142.56,50.0]
[1728148804825,7.0136,142.58,142.56,50.0]
[1728148805192,29.860184,142.61,142.54,50.0]
[1728148805384,7.0146,142.56,142.54,50.0]
[1728148805719,7.0146,142.56,142.53,50.0]
[1728148807187,7.0155,142.54,142.51,50.0]
[1728148807816,7.0151,142.55,142.52,50.0]
[1728148808019,7.0151,142.55,142.54,50.0]
[1728148808225,7.0151,142.55,142.52,50.0]
[1728148808711,7.0156,142.54,142.52,50.0]
[1728148810513,7.016,142.53,142.5,50.0]
[1728148810716,1.7075049,142.58,142.5,50.0]
[1728148810717,7.0165,142.52,142.5,50.0]
[1728148810893,7.016,142.54,142.5,50.0]
[1728148811088,7.0165,142.52,142.51,50.0]
[1728148811297,7.0165,142.52,142.49,50.0]
[1728148811512,1.7075049,142.54,142.49,50.0]
[1728148811718,7.0161,142.53,142.51,50.0]
[1728148812225,1.7075049,142.55,142.52,50.0]
[1728148812226,7.0156,142.54,142.52,50.0]
[1728148817627,7.0156,142.54,142.53,50.0]
[1728148819214,1.7075049,142.56,142.53,50.0]
[1728148819514,7.0151,142.55,142.53,50.0]
[1728148823726,23.776884,142.56,142.51,50.0]
[1728148824024,7.0161,142.53,142.51,50.0]
[1728148824911,7.0156,142.54,142.52,50.0]
[1728148828305,23.776884,142.56,142.52,50.0]
[1728148828511,7.0151,142.55,142.52,50.0]
[1728148829339,7.0151,142.55,142.53,50.0]
[1728148829523,7.0146,142.56,142.53,50.0]
[1728148829835,7.0146,142.56,142.54,1.40298164]
[1728148830208,7.0146,142.56,142.53,50.0]
[1728148830427,7.0146,142.56,142.54,50.0]
[1728148831530,7.0156,142.54,142.52,50.0]
[1728148831734,7.016,142.53,142.52,50.0]
[1728148831937,21.7075049,142.58,142.52,50.0]
[1728148832122,7.0156,142.54,142.52,50.0]
[1728148834722,7.0156,142.54,142.53,50.0]
[1728148834921,7.0152,142.55,142.53,50.0]
[1728148840948,7.0165,142.52,142.5,50.0]
[1728148841119,7.0161,142.53,142.52,50.0]
[1728148841637,7.0156,142.54,142.52,50.0]
[1728148845231,7.0156,142.54,142.53,50.0]
[1728148860365,7.0156,142.54,142.52,50.0]
[1728148861234,7.0156,142.54,142.53,50.0]
[1728148862363,7.0161,142.53,142.51,50.0]
[1728148863370,7.0161,142.53,142.52,50.0]
[1728148863661,7.0155,142.54,142.52,50.0]
[1728148864138,7.0152,142.55,142.54,50.0]
[1728148864851,7.0152,142.55,142.51,7.017]
[1728148864852,7.0142,142.57,142.56,50.0]
[1728148865163,7.0137,142.58,142.56,50.0]
[1728148870360,7.0132,142.59,142.56,50.0]
[1728148871162,7.0132,142.59,142.57,50.0]
[1728148876149,7.0136,142.58,142.55,50.0]
[1728148876349,7.0136,142.58,142.56,50.0]
[1728148877350,7.0136,142.58,142.57,50.0]
[1728148879957,7.0132,142.59,142.57,50.0]
[1728148880353,7.0127,142.6,142.57,50.0]
[1728148880750,7.0127,142.6,142.58,50.0]
[1728148884985,7.0127,142.6,142.55,20.29588046]
[1728148885157,7.0127,142.6,142.58,50.0]
[1728148885876,7.0121,142.61,142.58,50.0]
[1728148886056,7.0121,142.61,142.57,15.857]
[1728148886057,7.0121,142.61,142.6,50.0]
[1728148886366,7.0121,142.61,142.58,50.0]
[1728148887284,7.0121,142.61,142.59,50.0]
[1728148888282,8.7192049,142.62,142.58,57.0135]
[1728148888459,1.7075049,142.63,142.6,50.0]
[1728148888661,7.0121,142.61,142.6,50.0]
[1728148888970,7.0127,142.6,142.58,50.0]
[1728148889365,7.0127,142.6,142.59,50.0]
[1728148893468,7.0139,142.58,142.55,50.0]
[1728148894076,7.0141,142.57,142.55,50.0]
[1728148894979,7.0136,142.58,142.55,50.0]
[1728148895795,7.0131,142.59,142.56,50.0]
[1728148896866,7.0131,142.59,142.57,50.0]
[1728148898561,7.0127,142.6,142.57,50.0]
[1728148898966,1.7075049,142.61,142.57,50.0]
[1728148899300,7.0131,142.59,142.57,50.0]
[1728148901695,1.7075049,142.61,142.55,50.0]
[1728148901696,7.0141,142.57,142.55,50.0]
[1728148902187,7.0137,142.58,142.56,50.0]
[1728148904701,23.776884,142.6,142.56,50.0]
[1728148904997,7.0131,142.59,142.56,50.0]
[1728148905374,7.0131,142.59,142.57,50.0]
[1728148910807,7.0127,142.6,142.57,50.0]
[1728148911905,7.0127,142.6,142.58,50.0]
[1728148913187,7.0137,142.58,142.56,50.0]
[1728148916077,7.0137,142.58,142.57,50.0]
[1728148920115,1.7075049,142.61,142.57,50.0]
[1728148920316,23.776884,142.6,142.57,50.0]
[1728148920817,23.776884,142.61,142.57,50.0]
[1728148920992,1.7075049,142.6,142.57,50.0]
[1728148921314,7.0132,142.59,142.57,50.0]
[1728148923328,23.776884,142.61,142.57,50.0]
[1728148923494,7.0127,142.6,142.57,50.0]
[1728148923694,7.0127,142.6,142.58,50.0]
[1728148925910,7.0127,142.6,142.57,50.0]
[1728148926314,7.0133,142.59,142.57,50.0]
[1728148926507,7.0133,142.59,142.54,24.5536]
[1728148926508,7.0141,142.57,142.55,50.0]
[1728148926900,23.776884,142.6,142.56,50.0]
[1728148927103,7.0131,142.59,142.56,50.0]
[1728148927290,7.0131,142.59,142.58,50.0]
[1728148927492,7.0127,142.6,142.58,50.0]
[1728148929517,6.0127,142.6,142.58,50.0]
[1728148930618,7.7202049,142.6,142.58,50.0]
[1728148930828,7.7202049,142.6,142.56,50.0]
[1728148931296,23.776884,142.59,142.56,50.0]
[1728148931490,1.7075049,142.58,142.56,50.0]
[1728148932118,7.014,142.57,142.56,50.0]
[1728148932320,7.0137,142.58,142.56,50.0]
[1728148932523,23.776884,142.6,142.56,50.0]
[1728148932721,7.0132,142.59,142.56,50.0]
[1728148932924,7.0132,142.59,142.58,50.0]
[1728148933129,7.0127,142.6,142.58,50.0]
[1728148935222,23.776884,142.61,142.58,50.0]
[1728148935898,30.789084,142.61,142.58,50.0]
[1728148938304,7.0126,142.6,142.58,50.0]
[1728148938504,7.0126,142.6,142.56,67.5359]
[1728148939815,7.0126,142.6,142.57,50.0]
[1728148941720,8.7201049,142.6,142.57,50.0]
[1728148942122,8.7201049,142.6,142.56,67.5359]
[1728148942530,8.7201049,142.6,142.56,50.0]
[1728148942531,1.7075049,142.6,142.56,50.0]
[1728148942830,7.0139,142.58,142.56,50.0]
[1728148943629,7.0127,142.6,142.58,50.0]
[1728148946102,7.0131,142.59,142.56,50.0]
[1728148946306,7.0131,142.59,142.58,50.0]
[1728148946516,7.0126,142.6,142.58,50.0]
[1728148947139,7.0124,142.61,142.58,50.0]
[1728148947427,7.0124,142.61,142.59,50.0]
[1728148949223,7.0117,142.62,142.59,50.0]
[1728148949619,7.0117,142.62,142.6,50.0]
[1728148951737,7.0117,142.62,142.59,50.0]
[1728148953037,7.0117,142.62,142.57,40.1902]
[1728148953038,7.0117,142.62,142.6,50.0]
[1728148953632,7.0117,142.62,142.57,40.1902]
[1728148953633,7.0117,142.62,142.58,50.0]
[1728148953836,7.0123,142.61,142.57,40.1902]
[1728148954141,7.0123,142.61,142.58,50.0]
[1728148956045,7.0123,142.61,142.59,50.0]
[1728148957119,7.0123,142.61,142.58,50.0]
[1728148957326,7.0117,142.62,142.6,50.0]
[1728148960918,23.776884,142.64,142.61,1.40238263]
[1728148961128,7.0111,142.63,142.6,50.0]
[1728148961433,30.787584,142.64,142.61,50.0]
[1728148961946,7.0107,142.64,142.61,50.0]
[1728148962320,7.0107,142.64,142.62,50.0]
[1728148962840,7.0102,142.65,142.62,50.0]
[1728148963546,1.7075049,142.67,142.63,51.40208855]
[1728148963853,7.0095,142.67,142.63,51.40208855]
[1728148964347,25.45819329,142.68,142.65,50.0]
[1728148965123,7.0092,142.67,142.65,50.0]
[1728148965622,7.0092,142.67,142.64,50.0]
[1728148966227,7.0098,142.66,142.64,50.0]
[1728148968247,7.0091,142.68,142.64,50.0]
[1728148968427,7.866642,142.69,142.66,50.0]
[1728148968743,7.866642,142.69,142.65,7.0101]
[1728148968950,0.858042,142.69,142.68,50.0]
[1728148972049,0.858042,142.69,142.65,23.0437]
[1728148972350,0.858042,142.69,142.68,50.0]
[1728148974247,7.866142,142.69,142.67,50.0]
[1728148975447,7.866142,142.69,142.68,50.0]
[1728148977732,0.858042,142.69,142.68,57.0086]
[1728148977932,0.858042,142.69,142.68,71.94193319]
[1728148978130,0.858042,142.69,142.68,87.86873319]
[1728148978442,0.858042,142.69,142.68,86.46726046]
[1728148979531,7.0049,142.76,142.74,50.0]
[1728148980854,7.0049,142.76,142.71,7.007]
[1728148980855,7.0052,142.75,142.73,50.0]
[1728148981047,22.4895889,142.78,142.73,50.0]
[1728148982862,7.0057,142.74,142.72,50.0]
[1728148983441,7.0062,142.73,142.72,50.0]
[1728148984956,7.0062,142.73,142.68,22.07599]
[1728148985143,17.5122,142.76,142.71,50.0]
[1728148985458,7.0067,142.72,142.71,50.0]
[1728148986060,7.0076,142.71,142.68,15.9268]
[1728148986262,7.0076,142.71,142.69,50.0]
[1728148986756,23.776884,142.75,142.69,50.0]
[1728148986962,7.0085,142.69,142.67,50.0]
[1728148987150,7.0085,142.69,142.68,50.0]
[1728148987757,17.5153,142.74,142.68,50.0]
[1728148987941,7.0081,142.69,142.68,50.0]
[1728148988364,7.0081,142.69,142.67,50.0]
[1728148990362,7.0081,142.69,142.65,0.25098]
[1728148990566,7.0081,142.69,142.68,50.0]
[1728148992053,7.0091,142.67,142.66,50.0]
[1728148992255,17.5153,142.74,142.66,50.0]
[1728148992453,7.0088,142.68,142.66,50.0]
[1728148992766,7.0088,142.68,142.67,50.0]
[1728148993676,7.0088,142.68,142.66,50.0]
[1728148994776,17.5153,142.74,142.66,50.0]
[1728148994946,7.0091,142.67,142.64,66.3856]
[1728148995151,23.776884,142.7,142.64,66.3856]
[1728148995468,7.0097,142.66,142.64,66.3856]
[1728148995854,7.0097,142.66,142.65,50.0]
[1728148996567,7.0092,142.67,142.65,50.0]
[1728148996872,7.0092,142.67,142.64,66.3856]
[1728148998261,7.0098,142.66,142.64,66.3856]
[1728149000040,7.0098,142.66,142.64,16.3856]
[1728149000273,7.0098,142.66,142.65,50.0]
[1728149003174,7.0082,142.69,142.65,57.0099]
[1728149003369,7.0083,142.69,142.67,50.0]
[1728149004453,7.0091,142.67,142.65,50.0]
[1728149007171,7.0088,142.68,142.65,50.0]
[1728149007771,7.0088,142.68,142.66,50.0]
[1728149013448,7.0101,142.65,142.64,66.3856]
[1728149013647,23.776884,142.69,142.64,50.0]
[1728149013957,7.0102,142.65,142.64,50.0]
[1728149014276,7.0102,142.65,142.63,50.0]
[1728149016381,7.0102,142.65,142.62,50.0]
[1728149017385,7.0102,142.65,142.63,50.0]
[1728149018365,23.776884,142.67,142.64,51.40196996]
[1728149018575,7.0096,142.66,142.64,51.40196996]
[1728149020357,7.0087,142.68,142.66,50.0]
[1728149021362,7.0082,142.69,142.66,50.0]
[1728149021678,7.0082,142.69,142.67,50.0]
[1728149025665,23.9896,142.74,142.67,50.0]
[1728149025878,7.0086,142.68,142.67,50.0]
[1728149027163,7.0093,142.67,142.64,50.0]
[1728149028164,7.0098,142.66,142.64,50.0]
[1728149029079,7.0092,142.67,142.65,1.40191158]
[1728149029286,7.0092,142.67,142.65,51.40191158]
[1728149029493,7.0087,142.68,142.65,51.40191158]
[1728149029667,7.0087,142.68,142.65,50.0]
[1728149030487,7.0087,142.68,142.66,50.0]
[1728149034294,7.0087,142.68,142.64,50.0]
[1728149034793,7.0092,142.67,142.64,50.0]
[1728149035799,7.0092,142.67,142.65,50.0]
[1728149036298,7.77533709,142.74,142.69,50.0]
[1728149036471,7.0086,142.68,142.65,71.7696]
[1728149036670,7.0086,142.68,142.65,65.4198]
[1728149040497,7.0093,142.67,142.65,50.0]
[1728149041580,7.0082,142.69,142.65,57.0099]
[1728149042101,7.0082,142.69,142.66,1.4016927]
[1728149042396,7.0082,142.69,142.66,51.4016927]
[1728149042574,7.0082,142.69,142.66,50.0]
[1728149043673,17.5147,142.74,142.69,50.0]
[1728149043988,7.0068,142.72,142.69,50.0]
[1728149044181,7.0062,142.73,142.69,50.0]
[1728149044377,7.0062,142.73,142.68,7.0085]
[1728149044378,7.0062,142.73,142.7,50.0]
[1728149045574,7.0068,142.72,142.7,50.0]
[1728149047695,7.0062,142.73,142.7,50.0]
[1728149048118,23.776884,142.74,142.7,50.0]
[1728149048296,7.0067,142.72,142.7,50.0]
[1728149049007,7.0072,142.71,142.68,50.0]
[1728149049712,7.0072,142.71,142.69,50.0]
[1728149052481,7.0077,142.7,142.67,67.522]
[1728149052882,7.0077,142.7,142.68,50.0]
[1728149054107,7.0077,142.7,142.69,50.0]
[1728149054811,23.776884,142.74,142.69,50.0]
[1728149055010,7.0072,142.71,142.69,50.0]
[1728149056224,7.0072,142.71,142.68,50.0]
[1728149058214,7.0072,142.71,142.69,50.0]
[1728149059296,17.516,142.73,142.66,65.4198]
[1728149059502,7.0087,142.68,142.66,65.4198]
[1728149060391,7.0087,142.68,142.66,15.4198]
[1728149060589,7.0087,142.68,142.65,50.0]
[1728149062215,7.0096,142.66,142.65,50.0]
[1728149062406,17.5189,142.71,142.65,50.0]
[1728149062611,7.0092,142.67,142.65,50.0]
[1728149063819,7.0092,142.67,142.64,50.0]
[1728149064017,7.0101,142.65,142.64,50.0]
[1728149064200,7.0101,142.65,142.62,50.0]
[1728149064404,23.776884,142.68,142.62,50.0]
[1728149064629,6.6494,142.69,142.62,50.0]
[1728149064630,7.0106,142.64,142.62,50.0]
[1728149064800,7.0102,142.65,142.62,50.0]
[1728149064997,7.0107,142.64,142.62,50.0]
[1728149065225,7.0107,142.64,142.6,50.0]
[1728149065518,7.0111,142.63,142.6,50.0]
[1728149065900,7.0121,142.61,142.59,16.1946]
[1728149066097,7.0121,142.61,142.58,50.0]
[1728149066403,7.0126,142.6,142.58,50.0]
[1728149066597,17.5252,142.66,142.58,50.0]
[1728149066811,7.0121,142.61,142.58,50.0]
[1728149068425,7.0117,142.62,142.58,50.0]
[1728149068612,23.776884,142.65,142.6,50.0]
[1728149069117,23.776884,142.65,142.61,50.0]
[1728149069118,30.787084,142.65,142.61,50.0]
[1728149069611,7.0106,142.64,142.61,50.0]
[1728149071912,7.0112,142.63,142.61,50.0]
[1728149072099,7.0112,142.63,142.6,50.0]
[1728149073324,7.0107,142.64,142.61,50.0]
[1728149073726,23.776884,142.65,142.61,50.0]
[1728149073905,7.0111,142.63,142.61,50.0]
[1728149074305,7.0111,142.63,142.6,50.0]
[1728149074505,7.0117,142.62,142.58,67.5336]
[1728149075223,7.0117,142.62,142.6,50.0]
[1728149078714,7.0117,142.62,142.59,50.0]
[1728149080329,17.5239,142.67,142.59,50.0]
[1728149080330,7.0121,142.61,142.59,50.0]
[1728149082538,7.0117,142.62,142.59,50.0]
[1728149082830,7.0117,142.62,142.6,50.0]
[1728149083731,23.776884,142.66,142.6,50.0]
[1728149083929,7.0121,142.61,142.59,50.0]
[1728149085039,7.0121,142.61,142.58,50.0]
[1728149086027,7.0121,142.61,142.59,50.0]
[1728149086229,7.0116,142.62,142.59,50.0]
[1728149086432,23.776884,142.64,142.59,50.0]
[1728149087132,23.776884,142.64,142.6,50.0]